bitfinex/quotes_ETHUSD_20240925
["timestamp","ask_amount","ask_price","bid_price","bid_amount"]
[1727283819678,0.0373866,2607.8,2607.7,4.64839]
[1727283822478,0.0373866,2607.8,2607.7,0.8136]
[1727283822914,0.18376392,2607.8,2607.7,4.64839]
[1727283823294,0.0373866,2607.8,2607.7,4.64839]
[1727283823500,0.18376392,2607.8,2607.7,4.64839]
[1727283823793,0.0373866,2607.8,2607.7,4.64839]
[1727283824525,0.18376392,2607.8,2607.7,4.64839]
[1727283824708,0.0373866,2607.8,2607.7,4.64839]
[1727283825195,0.0373866,2607.8,2607.7,4.72507536]
[1727283826035,3.83482,2607.7,2607.4,0.793]
[1727283826184,3.83482,2607.7,2607.2,4.62851]
[1727283826388,0.14736341,2607.6,2607.2,4.62851]
[1727283827287,0.14736341,2607.6,2607.3,3.8353]
[1727283827489,0.14736341,2607.6,2607.4,3.83514]
[1727283827682,3.8720466,2607.8,2607.3,3.8353]
[1727283827929,0.14736341,2607.5,2607.3,3.8353]
[1727283828225,3.8720466,2607.8,2607.3,7.67059]
[1727283828226,0.0373866,2607.8,2607.3,7.67059]
[1727283828389,0.14736341,2607.4,2607.3,3.83529]
[1727283828984,0.0373866,2607.8,2607.3,3.83529]
[1727283829190,3.8720566,2607.8,2607.3,3.83529]
[1727283829416,0.14736341,2607.7,2607.3,3.83529]
[1727283829729,0.0373866,2607.8,2607.2,0.793]
[1727283830036,0.0373866,2607.8,2607.3,3.83529]
[1727283830037,0.14736341,2607.6,2607.3,3.83529]
[1727283830236,0.14736341,2607.5,2607.3,3.83529]
[1727283830444,0.14736341,2607.5,2607.3,3.83538]
[1727283830599,0.0373866,2607.8,2607.2,4.62842]
[1727283830600,3.83487,2607.7,2607.2,4.62842]
[1727283830802,0.14736341,2607.4,2607.2,4.62842]
[1727283831149,3.8720366,2607.8,2607.4,3.83521]
[1727283831325,3.8720366,2607.8,2607.3,3.83535]
[1727283832300,3.8720366,2607.8,2607.2,0.793]
[1727283832501,3.8720366,2607.8,2607.2,4.62844]
[1727283832706,3.8720366,2607.8,2607.3,3.83538]
[1727283834127,3.8721066,2607.8,2607.3,3.83535]
[1727283834335,0.0373866,2607.8,2607.3,3.83535]
[1727283834630,0.0373866,2607.8,2607.6,3.83492]
[1727283834842,0.0373866,2607.8,2607.7,4.59299]
[1727283837572,0.0373866,2607.8,2607.7,4.66967111]
[1727283837769,0.0373866,2607.8,2607.7,4.59299]
[1727283838278,0.0373866,2607.8,2607.7,4.70996775]
[1727283838440,0.0373866,2607.8,2607.7,7.63329]
[1727283838637,0.0373866,2607.8,2607.7,8.18329]
[1727283840167,0.0373866,2608.6,2608.5,4.60852]
[1727283843177,0.0373866,2608.6,2608.5,8.58148218]
[1727283843844,0.0373866,2608.6,2608.5,9.13148218]
[1727283844045,0.0373866,2608.6,2608.5,12.13148218]
[1727283846678,0.0373866,2608.6,2608.5,11.58148218]
[1727283846881,0.0373866,2608.6,2608.5,7.60852]
[1727283847479,0.0373866,2608.6,2608.5,4.60852]
[1727283849748,0.0373866,2608.6,2608.5,8.58148218]
[1727283851596,0.0373866,2608.6,2608.5,11.58148218]
[1727283853514,0.0373866,2608.6,2608.5,7.60852]
[1727283853656,0.0373866,2608.6,2608.5,3.83362]
[1727283853854,0.0373866,2608.6,2608.5,8.60448218]
[1727283854559,0.0373866,2608.6,2608.5,11.60448218]
[1727283856366,0.0373866,2608.6,2608.5,10.85501185]
[1727283858831,0.0373866,2608.6,2608.5,11.40501185]
[1727283860000,0.0373866,2609.4,2608.6,3.55]
[1727283860207,0.0373866,2609.4,2609.3,3.83244]
[1727283860586,0.17640703,2609.4,2609.3,3.83244]
[1727283860766,0.0373866,2609.4,2609.3,3.83244]
[1727283862614,0.0373866,2609.4,2609.0,3.83276]
[1727283862763,0.7588,2609.3,2608.9,3.83296]
[1727283862972,3.83281,2609.1,2608.7,11.27332]
[1727283863207,0.7588,2609.0,2608.6,3.83345]
[1727283863564,0.7588,2609.0,2608.3,0.7837]
[1727283863565,0.13955081,2608.9,2608.7,3.83331]
[1727283863771,0.13955081,2608.9,2608.7,3.83323]
[1727283864069,0.13955081,2608.9,2608.8,3.83318]
[1727283866029,0.13955081,2608.9,2608.6,3.83336]
[1727283866181,0.13955081,2608.9,2608.6,3.83346]
[1727283867112,0.13955081,2608.9,2608.5,3.83361]
[1727283867417,0.8293,2608.8,2608.4,3.83365]
[1727283867707,0.139153,2608.7,2608.4,3.83365]
[1727283868118,0.8293,2608.8,2608.5,3.83357]
[1727283868275,0.139153,2608.6,2608.2,7.44]
[1727283868468,0.8293,2608.8,2608.4,3.83369]
[1727283868669,0.139153,2608.7,2608.4,3.83369]
[1727283868925,0.7655,2608.6,2608.3,3.83383]
[1727283869214,0.904653,2608.6,2608.3,3.83383]
[1727283869596,0.904653,2608.6,2608.4,3.83368]
[1727283870012,0.904653,2608.6,2608.5,3.83362]
[1727283870320,0.7655,2608.6,2608.5,3.83362]
[1727283870673,0.904653,2608.6,2608.5,3.83362]
[1727283872802,0.139153,2608.6,2608.5,3.83362]
[1727283872983,0.7963,2609.0,2608.9,3.83303]
[1727283873396,0.935453,2609.0,2608.9,3.83303]
[1727283873575,0.139153,2609.0,2608.9,3.9096873]
[1727283873886,0.7963,2609.3,2608.5,3.96833973]
[1727283874087,0.7963,2609.3,2609.2,3.83259]
[1727283874287,0.93013402,2609.3,2609.2,3.83259]
[1727283875797,0.93013402,2609.3,2609.1,3.83272]
[1727283876041,0.93013402,2609.3,2608.9,3.83293]
[1727283876240,0.93013402,2609.3,2609.0,3.83279]
[1727283877521,0.93013402,2609.3,2609.1,3.83273]
[1727283881419,0.93013402,2609.3,2609.1,7.6654]
[1727283881613,0.93013402,2609.3,2609.1,3.83267]
[1727283881834,0.93013402,2609.3,2609.1,7.66534]
[1727283882040,0.93013402,2609.3,2609.1,3.83267]
[1727283882716,0.93013402,2609.3,2609.1,3.83266]
[1727283882936,0.13383402,2609.3,2609.2,3.83259]
[1727283883552,0.13383402,2609.3,2609.1,3.83265]
[1727283883973,0.8307,2609.2,2608.7,3.83322]
[1727283884166,4.66329,2609.2,2608.8,3.83317]
[1727283884370,0.13424022,2609.1,2608.8,3.83317]
[1727283884939,0.8297,2609.0,2608.7,3.8333]
[1727283885133,0.8297,2609.0,2608.6,3.83345]
[1727283885370,4.6626,2609.0,2608.5,3.83361]
[1727283885535,0.13424022,2608.9,2608.5,7.66709]
[1727283885734,3.96731022,2608.9,2608.5,3.83348]
[1727283885938,0.13424022,2608.9,2608.5,7.667]
[1727283886180,0.8297,2608.8,2608.5,3.83348]
[1727283886513,0.8297,2608.8,2608.5,7.66703]
[1727283886665,0.8297,2608.8,2608.0,15.32041442]
[1727283886666,0.13424022,2608.7,2608.3,3.8338]
[1727283886825,0.7781,2608.6,2608.0,7.44]
[1727283887161,0.13424022,2608.5,2608.4,3.83368]
[1727283888384,0.13424022,2608.5,2607.3,1.60415839]
[1727283888385,0.799,2608.2,2607.3,1.60415839]
[1727283888674,0.13424022,2608.5,2607.3,3.83528]
[1727283888675,0.7887,2607.7,2607.3,3.83528]
[1727283888965,0.13424022,2607.6,2606.9,3.83589]
[1727283889122,0.7887,2607.4,2606.9,3.83589]
[1727283889328,0.7887,2607.4,2606.7,3.83623]
[1727283889329,4.62402,2607.4,2606.7,3.83623]
[1727283889654,0.13424022,2607.3,2606.9,3.83593]
[1727283890038,0.13424022,2607.3,2606.9,3.83585]
[1727283890584,0.13424022,2607.3,2606.9,7.67169]
[1727283890749,0.13424022,2607.3,2607.0,3.83582]
[1727283890947,0.13424022,2607.3,2606.9,3.83584]
[1727283891953,0.13424022,2607.3,2606.9,7.6717]
[1727283892166,0.13424022,2607.3,2607.0,3.8358]
[1727283892362,0.13424022,2607.3,2606.9,3.83584]
[1727283892780,0.7887,2607.4,2606.9,3.83584]
[1727283893097,0.13424022,2607.3,2606.9,3.83584]
[1727283893401,0.7887,2607.4,2606.9,3.83595]
[1727283893757,0.13135773,2607.3,2606.8,3.83611]
[1727283894699,0.13135773,2607.3,2606.9,3.8359]
[1727283896016,0.13135773,2607.3,2607.0,7.67146]
[1727283896504,0.13135773,2607.3,2607.0,7.67147]
[1727283896665,0.13135773,2607.3,2607.2,3.83553]
[1727283896863,0.7711,2607.8,2607.2,0.07668997]
[1727283897103,0.12689518,2607.7,2607.6,3.83493]
[1727283897404,0.7711,2607.8,2607.6,3.83493]
[1727283897700,0.7711,2607.8,2607.5,3.83501]
[1727283897701,0.12689518,2607.7,2607.5,3.83501]
[1727283897915,0.7711,2607.8,2607.3,3.83531]
[1727283897916,0.7711,2607.8,2607.3,3.83523]
[1727283898088,0.12689518,2607.7,2607.3,3.83523]
[1727283898289,0.12689518,2607.7,2607.1,3.83567]
[1727283898290,3.8348,2607.7,2607.1,3.83567]
[1727283898494,3.83495,2607.6,2607.1,3.83567]
[1727283898719,0.12716946,2607.5,2607.2,3.83552]
[1727283898882,0.7682,2607.4,2607.1,7.67126]
[1727283899097,0.12721393,2607.3,2607.2,3.83551]
[1727283899281,0.12721393,2607.3,2606.8,0.7809]
[1727283899484,0.12721393,2607.3,2607.0,3.83569]
[1727283899727,0.12721393,2607.3,2606.5,7.6169]
[1727283899728,0.12721393,2607.3,2606.5,3.7804]
[1727283900018,0.12721393,2607.3,2607.0,3.83575]
[1727283900218,0.12721393,2607.3,2607.0,7.67145]
[1727283900520,0.12721393,2607.3,2607.0,3.8357]
[1727283900704,0.12721393,2607.3,2606.8,3.83597]
[1727283900915,4.81919832,2607.3,2606.8,3.83597]
[1727283901221,0.7704,2607.1,2606.7,3.8362]
[1727283901571,0.12699897,2607.0,2606.6,3.83628]
[1727283902185,0.12699897,2607.0,2606.7,3.83624]
[1727283902676,0.12699897,2607.0,2606.8,3.83597]
[1727283902877,0.12699897,2607.0,2606.9,3.83597]
[1727283903622,0.7982,2607.3,2607.0,3.83581]
[1727283904010,4.63364,2607.3,2606.8,3.83597]
[1727283904216,4.63364,2607.3,2606.6,3.83631]
[1727283904217,3.83554,2607.2,2606.6,3.83631]
[1727283904424,0.8084,2606.9,2606.3,0.0373866]
[1727283904590,3.8362,2606.8,2606.3,3.8742366]
[1727283904989,3.83628,2606.7,2606.3,0.0373866]
[1727283905231,3.83648,2606.6,2606.3,0.0373866]
[1727283905439,3.8367,2606.4,2606.3,0.0373866]
[1727283905938,4.6451,2606.4,2606.3,0.0373866]
[1727283906835,4.6451,2606.4,2604.7,0.0373866]
[1727283906836,0.55,2605.9,2604.7,0.0373866]
[1727283907004,7.64628,2605.6,2604.7,0.0373866]
[1727283907203,8.19628,2605.6,2604.7,0.0373866]
[1727283907888,7.64628,2605.6,2604.7,3.8764666]
[1727283908248,7.64628,2605.6,2604.7,0.0373866]
[1727283908389,8.19628,2605.6,2604.7,0.0373866]
[1727283908590,9.79706155,2605.6,2604.7,0.0373866]
[1727283912895,9.91958988,2605.6,2604.7,0.0373866]
[1727283915075,10.32024533,2605.6,2604.7,0.0373866]
[1727283917494,3.83906,2604.8,2604.7,0.0373866]
[1727283917674,5.64734472,2604.8,2604.7,0.0373866]
[1727283919462,8.64734472,2604.8,2604.7,0.0373866]
[1727283920718,8.09734472,2604.8,2604.7,0.0373866]
[1727283921919,8.64734472,2604.8,2604.7,0.0373866]
[1727283922816,8.09734472,2604.8,2604.7,0.0373866]
[1727283923703,8.64734472,2604.8,2604.7,0.0373866]
[1727283924619,11.88448376,2604.8,2604.7,0.0373866]
[1727283928099,8.64734472,2604.8,2604.7,0.0373866]
[1727283928304,8.09734472,2604.8,2604.7,0.0373866]
[1727283930117,11.88448376,2604.8,2604.7,0.0373866]
[1727283930673,8.64734472,2604.8,2604.7,0.0373866]
[1727283930876,8.09734472,2604.8,2604.7,0.0373866]
[1727283931902,8.16808127,2604.8,2604.7,0.0373866]
[1727283932222,8.71808127,2604.8,2604.7,0.0373866]
[1727283932422,7.03207527,2604.8,2604.7,0.0373866]
[1727283938480,7.84647527,2604.8,2604.7,0.0373866]
[1727283938679,11.08361431,2604.8,2604.7,0.0373866]
[1727283938894,7.03207527,2604.8,2604.7,0.0373866]
[1727283945322,0.19301527,2604.8,2604.7,0.0373866]
[1727283945516,3.83873,2605.1,2604.7,3.8765966]
[1727283945744,4.02543464,2605.0,2604.7,0.0373866]
[1727283946948,0.18666464,2605.0,2604.7,0.0373866]
[1727283947717,0.18666464,2605.0,2604.7,3.8765666]
[1727283949188,3.83863,2605.1,2604.7,3.8765666]
[1727283949459,0.18666464,2604.9,2604.7,3.8765666]
[1727283949620,3.83863,2605.1,2604.7,0.0373866]
[1727283949817,0.18666464,2604.8,2604.7,0.0373866]
[1727283950052,3.83906,2604.8,2604.7,0.0373866]
[1727283950232,4.02572464,2604.8,2604.7,0.0373866]
[1727283954841,4.02572464,2604.8,2604.7,0.8508866]
[1727283955038,0.18666464,2604.8,2604.7,0.8508866]
[1727283955245,3.83872,2605.1,2604.7,4.6900866]
[1727283955443,0.18666464,2604.8,2604.7,4.6900866]
[1727283955632,3.83872,2605.1,2604.7,4.6900866]
[1727283956151,0.18666464,2605.0,2604.7,4.6900866]
[1727283956760,0.18666464,2605.0,2604.7,0.8508866]
[1727283956940,0.18666464,2605.0,2604.7,4.6900666]
[1727283957346,4.02545464,2605.0,2604.7,0.8508866]
[1727283958168,3.83891,2604.9,2604.7,0.8508866]
[1727283958364,0.18702261,2604.8,2604.7,0.8508866]
[1727283958568,3.83878,2605.0,2604.7,0.8508866]
[1727283958742,0.18736565,2604.9,2604.7,0.8508866]
[1727283960535,3.83906,2604.8,2604.7,0.8508866]
[1727283960736,4.02641074,2604.8,2604.7,0.8508866]
[1727283960961,4.81292981,2604.8,2604.7,0.0373866]
[1727283962799,7.81292981,2604.8,2604.7,0.0373866]
[1727283973025,8.57992981,2604.8,2604.7,0.0373866]
[1727283973395,9.12992981,2604.8,2604.7,0.0373866]
[1727283974296,10.62582983,2604.8,2604.7,0.0373866]
[1727283974498,7.81292981,2604.8,2604.7,0.0373866]
[1727283974698,4.02641074,2604.8,2604.7,0.0373866]
[1727283974915,6.437846,2604.8,2604.7,0.0373866]
[1727283975091,4.02641074,2604.8,2604.7,0.0373866]
[1727283975295,0.18735074,2604.8,2604.7,0.0373866]
[1727283975508,4.02641074,2604.8,2604.7,0.0373866]
[1727283976233,5.05408734,2604.8,2604.7,0.0373866]
[1727283976416,5.60408734,2604.8,2604.7,0.0373866]
[1727283978032,8.60408734,2604.8,2604.7,0.0373866]
[1727283978903,11.41698736,2604.8,2604.7,0.0373866]
[1727283979432,7.02641074,2604.8,2604.7,0.0373866]
[1727283979795,9.43820189,2604.8,2604.7,0.0373866]
[1727283980533,7.02641074,2604.8,2604.7,0.0373866]
[1727283981327,9.43818959,2604.8,2604.7,0.0373866]
[1727283981948,6.43818959,2604.8,2604.7,0.0373866]
[1727283982149,4.02641074,2604.8,2604.7,0.0373866]
[1727283982508,6.43818959,2604.8,2604.7,0.0373866]
[1727283984651,4.02641074,2604.8,2604.7,0.0373866]
[1727283984957,6.43841236,2604.8,2604.7,0.0373866]
[1727283985627,6.43850279,2604.8,2604.7,0.0373866]
[1727283988770,15.04918411,2604.8,2604.7,0.0373866]
[1727283988964,16.36093735,2604.8,2604.7,0.0373866]
[1727283989639,15.95943806,2604.8,2604.7,0.0373866]
[1727283990041,12.63709206,2604.8,2604.7,0.0373866]
[1727283990256,11.66235355,2604.8,2604.7,0.0373866]
[1727283990442,14.89949259,2604.8,2604.7,0.0373866]
[1727283990645,12.63709206,2604.8,2604.7,0.0373866]
[1727283991243,15.95792804,2604.8,2604.7,0.0373866]
[1727283991449,13.03751081,2604.8,2604.7,0.0373866]
[1727283991648,17.02602248,2604.8,2604.7,0.0373866]
[1727283991851,13.03751081,2604.8,2604.7,0.0373866]
[1727283992568,16.35753897,2604.8,2604.7,0.0373866]
[1727283992729,13.03751081,2604.8,2604.7,0.0373866]
[1727283994860,15.44783736,2604.8,2604.7,0.0373866]
[1727283995074,12.63709206,2604.8,2604.7,0.0373866]
[1727283999746,16.35896945,2604.8,2604.7,0.0373866]
[1727284000047,13.03745363,2604.8,2604.7,0.0373866]
[1727284000245,16.35849178,2604.8,2604.7,0.0373866]
[1727284001494,13.52402389,2604.8,2604.7,0.0373866]
[1727284002248,13.52402389,2604.8,2603.9,0.0373866]
[1727284002249,11.43387904,2604.0,2603.9,0.0373866]
[1727284002671,12.58917383,2604.0,2603.9,0.0373866]
[1727284002864,15.33738233,2604.0,2603.9,0.0373866]
[1727284003061,11.61367303,2604.0,2603.9,0.0373866]
[1727284003267,14.92909933,2604.0,2603.9,0.0373866]
[1727284003587,17.42050264,2604.0,2603.9,0.0373866]
[1727284003784,14.10507634,2604.0,2603.9,0.0373866]
[1727284003986,17.42034952,2604.0,2603.9,0.0373866]
[1727284004192,14.10507634,2604.0,2603.9,0.0373866]
[1727284004496,16.91045534,2604.0,2603.9,0.0373866]
[1727284004877,14.10507634,2604.0,2603.9,0.0373866]
[1727284005368,16.9092601,2604.0,2603.9,0.0373866]
[1727284006393,14.10507634,2604.0,2603.9,0.0373866]
[1727284007184,13.29857634,2604.0,2603.9,0.0373866]
[1727284007403,15.7022899,2604.0,2603.9,0.0373866]
[1727284007756,12.7022899,2604.0,2603.9,0.0373866]
[1727284008265,9.46515086,2604.0,2603.9,0.0373866]
[1727284008700,12.70244541,2604.0,2603.9,0.0373866]
[1727284009189,15.70244541,2604.0,2603.9,0.0373866]
[1727284009958,16.10288224,2604.0,2603.9,0.0373866]
[1727284010373,13.69901317,2604.0,2603.9,0.0373866]
[1727284011892,16.10288224,2604.0,2603.9,0.0373866]
[1727284013504,16.10212307,2604.0,2603.9,0.0373866]
[1727284014491,10.46187413,2604.0,2603.9,0.0373866]
[1727284014803,3.84113,2603.4,2603.3,0.7297866]
[1727284015279,4.01944134,2603.4,2603.3,0.7297866]
[1727284017062,0.17831134,2603.4,2603.3,0.7297866]
[1727284017954,3.84084,2603.6,2603.3,0.7297866]
[1727284018162,0.17835628,2603.4,2603.3,0.7297866]
[1727284020094,4.01867361,2603.4,2603.3,0.7297866]
[1727284021100,0.17754361,2603.4,2603.3,0.7297866]
[1727284022478,4.01867361,2603.4,2603.3,0.7297866]
[1727284023004,0.17754361,2603.4,2603.3,0.7297866]
[1727284023186,4.01867361,2603.4,2603.3,0.7297866]
[1727284026211,0.17754361,2603.4,2603.3,0.7297866]
[1727284027577,14.43738904,2604.0,2603.3,0.7297866]
[1727284027578,2.40216477,2604.3,2603.7,3.84067]
[1727284027811,7.42032557,2604.6,2604.1,3.84008]
[1727284027812,3.83945,2604.6,2604.1,3.84008]
[1727284028111,3.83945,2604.6,2604.2,0.7752]
[1727284028317,3.83968,2604.4,2604.2,0.7752]
[1727284028615,3.8398,2604.3,2604.2,0.7752]
[1727284028819,7.07681904,2604.4,2602.6,4.64821773]
[1727284028820,3.84047,2603.9,2603.6,0.7752]
[1727284029171,3.23713904,2604.0,2603.6,0.7752]
[1727284029172,3.84054,2603.8,2603.6,0.7752]
[1727284029809,3.84068,2603.7,2603.6,0.7752]
[1727284030376,3.84055,2603.8,2603.6,0.7752]
[1727284030790,3.84032,2604.0,2603.6,0.7752]
[1727284031739,3.0,2604.3,2603.8,0.8088]
[1727284032031,6.83991,2604.3,2603.8,4.64927]
[1727284032532,6.83991,2604.3,2603.8,0.8088]
[1727284032533,3.8401,2604.1,2603.8,0.8088]
[1727284032716,3.83996,2604.2,2603.8,0.8088]
[1727284032933,0.17307361,2604.0,2603.8,0.8088]
[1727284033136,3.84016,2604.1,2603.8,0.8088]
[1727284033301,0.17307361,2603.9,2603.8,0.8088]
[1727284033491,3.83996,2604.2,2603.8,0.8088]
[1727284033703,0.17319378,2603.9,2603.8,0.8088]
[1727284033996,3.84025,2604.0,2603.8,0.8088]
[1727284034194,4.01358378,2603.9,2603.8,0.8088]
[1727284034429,0.17319378,2603.9,2603.8,0.8088]
[1727284034630,4.01358378,2603.9,2603.8,0.8088]
[1727284036010,0.17319378,2603.9,2603.8,0.8088]
[1727284036431,9.24594041,2604.3,2603.8,4.64934]
[1727284036633,3.0,2604.1,2603.8,4.64934]
[1727284036911,6.84011,2604.1,2603.8,0.8088]
[1727284037064,0.1731337,2604.0,2603.8,0.8088]
[1727284037360,0.1731337,2604.0,2603.8,4.64932]
[1727284037659,3.84004,2604.2,2603.8,4.64933]
[1727284037959,0.1731337,2604.1,2603.8,0.8088]
[1727284038826,4.0132437,2604.1,2603.8,0.8088]
[1727284039719,0.1731337,2604.1,2603.9,3.84028]
[1727284039965,0.1731337,2604.1,2604.0,7.89377904]
[1727284040170,3.83924,2604.7,2604.3,0.8164]
[1727284040461,0.16762926,2604.6,2604.3,4.65618]
[1727284040888,3.83959,2604.5,2604.3,0.8164]
[1727284041093,3.83965,2604.4,2604.3,0.8164]
[1727284041257,3.83965,2604.4,2604.0,0.7967]
[1727284041444,0.16762926,2604.3,2604.0,0.7967]
[1727284042156,0.16762926,2604.3,2604.0,4.63694]
[1727284042600,3.83951,2604.5,2604.0,4.63694]
[1727284042762,0.16762926,2604.2,2604.1,4.63679]
[1727284042972,6.24685484,2604.8,2604.4,4.62832]
[1727284042973,3.83913,2604.8,2604.4,4.62832]
[1727284043147,3.0,2604.9,2604.4,4.62832]
[1727284043348,3.83908,2604.8,2604.4,4.62832]
[1727284044279,3.83898,2604.9,2604.4,4.62832]
[1727284044784,3.83885,2605.0,2604.5,3.83943]
[1727284045296,3.83893,2604.9,2604.5,3.83943]
[1727284045452,3.83893,2604.9,2604.4,4.62832]
[1727284045647,3.83944,2604.6,2604.4,0.7887]
[1727284045853,3.83966,2604.4,2604.1,0.7852]
[1727284046275,3.83987,2604.3,2604.1,0.7852]
[1727284046577,3.83995,2604.2,2604.1,0.7852]
[1727284046851,3.83993,2604.3,2604.0,0.7979]
[1727284047199,3.83975,2604.4,2604.0,0.7979]
[1727284047661,3.83981,2604.3,2604.0,0.7979]
[1727284047867,0.16762926,2604.2,2604.0,0.7979]
[1727284048067,3.83981,2604.3,2604.0,0.7979]
[1727284048290,0.16762926,2604.2,2604.0,0.7979]
[1727284048495,7.67974,2604.3,2604.0,0.7979]
[1727284048684,4.00768926,2604.2,2604.0,0.7979]
[1727284049196,3.84031,2604.0,2603.7,0.7868]
[1727284049549,3.8401,2604.1,2603.7,0.7868]
[1727284049757,0.16762926,2603.9,2603.7,4.62737]
[1727284050060,3.84004,2604.2,2603.8,3.84049]
[1727284050263,3.83974,2604.4,2603.9,3.84038]
[1727284050473,7.67951,2604.4,2604.0,0.802]
[1727284050770,1.86322343,2604.7,2604.1,3.84007]
[1727284050995,3.83945,2604.6,2604.1,3.84003]
[1727284051159,11.57047509,2604.9,2604.4,0.8007]
[1727284051160,1.80488139,2604.9,2604.4,0.8007]
[1727284051354,3.83936,2604.6,2604.4,0.8007]
[1727284051856,3.83921,2604.7,2604.4,0.8007]
[1727284053193,3.83901,2604.9,2604.4,0.8007]
[1727284053194,3.83901,2604.9,2604.4,4.64034]
[1727284053350,3.83909,2604.8,2604.4,4.64034]
[1727284054697,3.83901,2604.9,2604.4,4.64034]
[1727284054864,3.83871,2605.1,2604.4,4.64028]
[1727284055059,3.83907,2604.8,2604.4,0.8007]
[1727284055393,3.83924,2604.7,2604.4,0.8007]
[1727284055752,3.83907,2604.8,2604.4,0.8007]
[1727284055990,3.83893,2604.9,2604.5,3.83949]
[1727284056195,3.83907,2604.8,2604.4,0.8007]
[1727284056399,3.83892,2604.9,2604.4,0.8007]
[1727284056605,10.5281151,2605.7,2604.8,4.04183904]
[1727284056902,10.5281151,2605.7,2604.5,3.91623709]
[1727284056903,3.83872,2605.1,2604.9,0.8047]
[1727284057390,3.83877,2605.0,2604.9,0.8047]
[1727284057589,3.83857,2605.2,2604.6,0.8259]
[1727284057763,3.83857,2605.2,2604.7,3.83919]
[1727284057953,3.83857,2605.2,2604.8,0.7927]
[1727284058453,3.83857,2605.2,2604.8,4.63175]
[1727284058793,3.83829,2605.4,2604.8,4.63175]
[1727284058997,3.838,2605.6,2605.1,4.6313]
[1727284059294,4.61709,2605.8,2605.1,0.7927]
[1727284059295,3.83825,2605.4,2605.1,0.7927]
[1727284059513,3.83871,2605.1,2604.9,0.7927]
[1727284060405,3.83847,2605.2,2604.9,0.7927]
[1727284060614,3.83865,2605.1,2604.9,0.7927]
[1727284060895,3.83847,2605.2,2604.9,0.7927]
[1727284061397,3.83866,2605.1,2604.9,0.7927]
[1727284061605,3.83848,2605.2,2604.9,0.7927]
[1727284062903,3.99643003,2605.1,2604.9,0.7927]
[1727284063063,0.15779003,2605.1,2604.9,0.7927]
[1727284063977,3.83837,2605.3,2604.9,0.7927]
[1727284064212,0.15779003,2605.0,2604.9,0.7927]
[1727284064835,0.15779003,2605.0,2604.7,0.7923]
[1727284064836,3.83878,2605.0,2604.7,0.7923]
[1727284064991,0.15779003,2605.0,2604.7,0.7923]
[1727284065807,0.15779003,2605.0,2604.7,4.63148]
[1727284066114,0.15779003,2605.0,2604.7,0.7923]
[1727284066619,0.15779003,2605.0,2604.7,4.63148]
[1727284066948,0.15779003,2605.0,2604.8,3.83906]
[1727284067123,0.15779003,2605.0,2604.9,4.65701]
[1727284067277,4.61788,2605.6,2604.9,0.8181]
[1727284067478,3.8382,2605.4,2604.9,4.65699]
[1727284067706,0.15805423,2605.3,2605.0,3.83868]
[1727284067880,4.299828,2605.5,2605.0,3.83868]
[1727284068097,0.15805423,2605.4,2605.0,3.83868]
[1727284068726,0.15805423,2605.4,2605.1,3.83858]
[1727284069092,7.67601,2605.6,2605.1,3.83858]
[1727284069297,4.985971,2605.6,2605.2,0.7657]
[1727284069599,3.99608423,2605.5,2605.2,0.7657]
[1727284070030,3.83818,2605.4,2605.2,0.7657]
[1727284070408,7.6765,2605.4,2605.2,0.7657]
[1727284070596,0.15805423,2605.3,2605.0,0.7738]
[1727284070795,0.55767765,2605.3,2604.7,3.8391]
[1727284071016,3.83849,2605.2,2604.8,4.61285]
[1727284071517,0.15805423,2605.1,2604.8,0.7738]
[1727284071904,0.15805423,2605.1,2604.8,4.61278]
[1727284072111,3.83827,2605.4,2604.9,3.83882]
[1727284072422,0.15805423,2605.3,2605.0,3.83875]
[1727284073692,0.8302,2605.2,2604.6,7.44]
[1727284073940,3.83904,2604.9,2604.6,7.44]
[1727284074137,3.83904,2604.9,2604.5,0.7589]
[1727284074636,0.15805423,2604.8,2604.5,0.7589]
[1727284075832,4.6687,2605.2,2604.5,0.7589]
[1727284075833,3.83888,2605.0,2604.5,0.7589]
[1727284075992,0.8302,2605.2,2604.5,0.7589]
[1727284075993,0.15805423,2604.7,2604.5,0.7589]
[1727284076193,3.8391,2604.8,2604.5,0.7589]
[1727284076597,0.15805423,2604.6,2604.5,0.7589]
[1727284076810,7.67827,2604.8,2604.5,0.7589]
[1727284077013,0.15805423,2604.6,2604.5,0.7589]
[1727284077505,3.8391,2604.8,2604.5,0.7589]
[1727284077707,0.15796366,2604.7,2604.5,0.7589]
[1727284078233,4.305766,2605.0,2604.5,0.7589]
[1727284078420,0.15796366,2604.6,2604.5,0.7589]
[1727284078618,3.83907,2604.8,2604.5,0.7589]
[1727284078830,0.15796366,2604.6,2604.5,0.7589]
[1727284079005,3.83907,2604.8,2604.5,0.7589]
[1727284079206,0.15796366,2604.6,2604.5,0.7589]
[1727284079406,3.83907,2604.8,2604.5,0.7589]
[1727284079600,0.15796366,2604.6,2604.5,0.7589]
[1727284079839,3.83907,2604.8,2604.5,0.7589]
[1727284080042,0.15796366,2604.6,2604.5,0.7589]
[1727284080202,3.83907,2604.8,2604.5,0.7589]
[1727284080405,0.15796366,2604.6,2604.5,0.7589]
[1727284080916,7.07552904,2605.3,2604.5,0.7589]
[1727284080917,3.83822,2605.4,2604.8,3.83896]
[1727284081240,0.15796366,2605.3,2605.1,0.8203]
[1727284081957,0.15796366,2605.3,2605.1,4.65892]
[1727284082149,0.15796366,2605.3,2605.2,3.83847]
[1727284082304,3.83783,2605.7,2605.2,3.83847]
[1727284082500,0.15796366,2605.6,2605.2,3.83847]
[1727284082914,3.99591366,2605.6,2605.2,3.83847]
[1727284083238,3.99591366,2605.6,2605.1,4.65889]
[1727284084007,3.83805,2605.5,2605.1,4.65889]
[1727284084209,3.83805,2605.5,2605.1,0.8203]
[1727284084522,0.15796366,2605.4,2605.1,0.8203]
[1727284084844,0.15796366,2605.4,2604.9,3.83884]
[1727284084845,0.94316366,2605.4,2604.9,3.83884]
[1727284085046,0.15796366,2605.4,2604.9,3.83884]
[1727284085248,0.15796366,2605.4,2605.0,3.83875]
[1727284086608,3.99620366,2605.4,2604.9,3.83882]
[1727284087042,0.15796366,2605.4,2604.9,3.83882]
[1727284087243,0.15796366,2605.4,2605.0,3.83866]